bitfinex-derivatives/quotes_BTCF0:USTF0_20260127
["timestamp","ask_amount","ask_price","bid_price","bid_amount"]
[1769545314512,0.101,89219.0,89203.0,0.011225]
[1769545314811,0.101,89219.0,89204.0,0.00258838]
[1769545315312,0.101,89219.0,89198.0,0.101]
[1769545315313,0.01508556,89218.0,89198.0,0.101]
[1769545315608,0.01508556,89218.0,89198.0,0.11481438]
[1769545315816,0.00386256,89218.0,89200.0,0.011225]
[1769545316010,0.00386256,89218.0,89207.0,0.011224]
[1769545316211,0.101,89219.0,89210.0,0.011224]
[1769545316417,0.101,89219.0,89212.0,0.011224]
[1769545316716,0.101,89219.0,89213.0,0.00258838]
[1769545316930,0.101,89226.0,89216.0,0.011223]
[1769545317210,0.101,89230.0,89213.0,0.011224]
[1769545317416,0.101,89230.0,89214.0,0.00258838]
[1769545317911,0.101,89230.0,89221.0,0.011223]
[1769545318113,0.00258838,89229.0,89209.0,0.101]
[1769545318420,0.011,89247.0,89231.0,0.011221]
[1769545318619,0.011,89247.0,89228.0,0.011222]
[1769545318620,0.00258838,89236.0,89228.0,0.011222]
[1769545319117,0.00258838,89236.0,89223.0,0.101]
[1769545319723,0.011,89247.0,89223.0,0.101]
[1769545319724,0.011,89247.0,89226.0,0.011222]
[1769545319919,0.01122,89245.0,89226.0,0.011222]
[1769545320223,0.01122,89245.0,89223.0,0.101]
[1769545320224,0.011,89247.0,89225.0,0.00988092]
[1769545320410,0.01358838,89247.0,89225.0,0.00988092]
[1769545320606,0.01358838,89247.0,89220.0,0.13007861]
[1769545320811,0.0139456,89247.0,89222.0,0.13007861]
[1769545321013,0.0139456,89247.0,89216.0,0.00988092]
[1769545321014,0.01358838,89247.0,89216.0,0.00988092]
[1769545321316,0.01358838,89247.0,89231.0,0.02110192]
[1769545321520,0.01358838,89247.0,89232.0,0.00988092]
[1769545322214,0.01358838,89247.0,89230.0,0.101]
[1769545322810,0.01122,89242.0,89222.0,0.00983046]
[1769545323009,0.00258838,89241.0,89223.0,0.112222]
[1769545323422,0.00258838,89241.0,89223.0,0.101]
[1769545323916,0.00258838,89241.0,89225.0,0.00983046]
[1769545325609,0.00258838,89241.0,89215.0,0.0210836]
[1769545325806,0.011221,89236.0,89216.0,0.39656]
[1769545326015,0.011,89247.0,89217.0,0.0098606]
[1769545326212,0.00258838,89246.0,89217.0,0.0098606]
[1769545326414,0.00258838,89246.0,89230.0,0.011222]
[1769545326618,0.00095798,89258.0,89230.0,0.011222]
[1769545326619,0.01217398,89279.0,89241.0,0.00968067]
[1769545326915,0.01217398,89279.0,89231.0,0.101]
[1769545326916,0.00258838,89264.0,89242.0,0.101]
[1769545327120,0.00980194,89263.0,89242.0,0.101]
[1769545327307,0.00258838,89262.0,89242.0,0.101]
[1769545327511,0.01122,89240.0,89222.0,0.08771406]
[1769545327718,0.011221,89238.0,89220.0,0.0096113]
[1769545327912,0.00258838,89237.0,89221.0,0.101]
[1769545328314,0.011221,89236.0,89216.0,0.08771406]
[1769545328513,0.00258838,89237.0,89213.0,0.101]
[1769545328514,0.011222,89230.0,89213.0,0.101]
[1769545328717,0.00258838,89229.0,89210.0,0.0096113]
[1769545329021,0.00980194,89228.0,89202.0,0.101]
[1769545329319,0.011223,89217.0,89202.0,0.101]
[1769545329519,0.00258838,89216.0,89202.0,0.101]
[1769545329710,0.00258838,89223.0,89202.0,0.101]
[1769545330022,0.011223,89219.0,89202.0,0.101]
[1769545330219,0.00258838,89218.0,89202.0,0.101]
[1769545330422,0.00258838,89218.0,89202.0,0.112225]
[1769545330623,0.00258838,89218.0,89206.0,0.011225]
[1769545330823,0.101,89239.0,89215.0,0.011223]
[1769545331025,0.00258838,89233.0,89215.0,0.011223]
[1769545331409,0.101,89239.0,89213.0,0.1106113]
[1769545331608,0.101,89239.0,89214.0,0.0096113]
[1769545331609,0.00258838,89238.0,89214.0,0.0096113]
[1769545331816,0.00258838,89238.0,89219.0,0.011223]
[1769545332926,0.00258838,89238.0,89215.0,0.0096113]
[1769545333125,0.00258838,89237.0,89219.0,0.0096113]
[1769545333333,0.101,89239.0,89219.0,0.0096113]
[1769545333523,0.011,89267.0,89240.0,0.01122]
[1769545333822,0.00258838,89259.0,89233.0,0.08771406]
[1769545334018,0.011219,89254.0,89234.0,0.19993506]
[1769545334214,0.011218,89260.0,89238.0,0.011221]
[1769545334415,0.00258838,89260.0,89239.0,0.01122]
[1769545334614,0.00258838,89260.0,89240.0,0.0096113]
[1769545335122,0.00258838,89260.0,89240.0,0.101]
[1769545335123,0.00980194,89259.0,89240.0,0.101]
[1769545335326,0.01122,89246.0,89230.0,0.08771406]
[1769545335522,0.00258838,89245.0,89230.0,0.101]
[1769545336514,0.101,89258.0,89231.0,0.0208323]
[1769545336720,0.00258838,89257.0,89232.0,0.0096113]
[1769545337319,0.011219,89248.0,89232.0,0.0096113]
[1769545337516,0.01122,89246.0,89230.0,0.101]
[1769545337833,0.011219,89248.0,89230.0,0.1106113]
[1769545338437,0.00258838,89247.0,89230.0,0.1106113]
[1769545338625,0.01122,89246.0,89230.0,0.1106113]
[1769545338819,0.00258838,89247.0,89230.0,0.1106113]
[1769545339030,0.101,89258.0,89231.0,0.0096113]
[1769545339232,0.01122,89244.0,89230.0,0.101]
[1769545339532,0.00258838,89243.0,89230.0,0.101]
[1769545339920,0.00258838,89243.0,89223.0,0.18871406]
[1769545340333,0.011222,89228.0,89220.0,0.08771406]
[1769545340522,0.101,89247.0,89218.0,0.0096113]
[1769545340721,0.00258838,89241.0,89221.0,0.0096113]
[1769545340932,0.00258838,89241.0,89225.0,0.011222]
[1769545341127,0.00258838,89241.0,89227.0,0.011222]
[1769545341323,0.00258838,89241.0,89221.0,0.0096113]
[1769545341324,0.011219,89248.0,89229.0,0.011222]
[1769545341528,0.00258838,89247.0,89221.0,0.0096113]
[1769545341832,0.11222,89246.0,89229.0,0.011222]
[1769545342035,0.00258838,89245.0,89228.0,0.011222]
[1769545342334,0.01122,89244.0,89228.0,0.011222]
[1769545342634,0.00258838,89244.0,89227.0,0.1106113]
[1769545342933,0.00258838,89244.0,89227.0,0.101]
[1769545343629,0.01122,89241.0,89227.0,0.101]
[1769545343827,0.00905739,89240.0,89218.0,0.08771406]
[1769545344025,0.10358838,89239.0,89221.0,0.011223]
[1769545344224,0.011219,89255.0,89221.0,0.00947248]
[1769545344429,0.01122,89244.0,89225.0,0.011222]
[1769545344634,0.11206993,89257.0,89240.0,0.00915806]
[1769545344928,0.00258838,89257.0,89242.0,0.00915806]
[1769545345125,0.00258838,89257.0,89246.0,0.01122]
[1769545345525,0.011218,89263.0,89246.0,0.01122]
[1769545345727,0.10884116,89273.0,89246.0,0.01122]
[1769545345728,0.00258838,89262.0,89246.0,0.01122]
[1769545345925,0.00258838,89262.0,89243.0,0.01122]
[1769545346734,0.011218,89261.0,89243.0,0.01122]
[1769545346943,0.011218,89259.0,89235.0,0.08771406]
[1769545347131,0.00258838,89258.0,89236.0,0.18867406]
[1769545347330,0.00258838,89258.0,89240.0,0.01122]
[1769545347528,0.00258838,89258.0,89236.0,0.10096]
[1769545347729,0.011219,89254.0,89236.0,0.10096]
[1769545347933,0.011219,89252.0,89236.0,0.10096]
[1769545348129,0.00258838,89251.0,89236.0,0.10096]
[1769545348728,0.00258838,89251.0,89237.0,0.011221]
[1769545348929,0.00258838,89251.0,89236.0,0.011221]
[1769545349243,0.00258838,89251.0,89238.0,0.10096]
[1769545349429,0.011218,89259.0,89238.0,0.10096]
[1769545349632,0.00258838,89258.0,89238.0,0.10096]
[1769545349832,0.011218,89257.0,89238.0,0.112181]
[1769545350028,0.00258838,89256.0,89238.0,0.112181]
[1769545350632,0.011218,89255.0,89238.0,0.112181]
[1769545350832,0.00258838,89254.0,89238.0,0.112181]
[1769545351033,0.011219,89253.0,89238.0,0.10096]
[1769545351338,0.00258838,89252.0,89238.0,0.10096]
[1769545351933,0.00915223,89249.0,89224.0,0.13157528]
[1769545352136,0.00258838,89248.0,89224.0,0.10096]
[1769545352337,0.01380738,89248.0,89221.0,0.29548]
[1769545352541,0.01380738,89248.0,89222.0,0.10096]
[1769545352835,0.01380738,89248.0,89223.0,0.00915806]
[1769545352836,0.00258838,89248.0,89223.0,0.00915806]
[1769545353732,0.00258838,89248.0,89225.0,0.00915806]
[1769545354125,0.00258838,89248.0,89233.0,0.011221]
[1769545354324,0.00258838,89248.0,89225.0,0.00915806]
[1769545354537,0.011219,89247.0,89229.0,0.011222]
[1769545354736,0.00258838,89246.0,89225.0,0.00915806]
[1769545354939,0.01122,89242.0,89225.0,0.02038006]
[1769545355138,0.00258838,89241.0,89225.0,0.02038006]
[1769545355530,0.01122,89240.0,89225.0,0.00915806]
[1769545355738,0.00258838,89239.0,89225.0,0.00915806]
[1769545355937,0.00258838,89239.0,89225.0,0.02038006]
[1769545356333,0.011218,89258.0,89224.0,0.10096]
[1769545356334,0.011217,89266.0,89235.0,0.00915806]
[1769545356530,0.02015223,89267.0,89242.0,0.00915806]
[1769545356531,0.011218,89259.0,89242.0,0.00915806]
[1769545356737,0.00086282,89258.0,89243.0,0.00258838]
[1769545357247,0.011219,89251.0,89238.0,0.10096]
[1769545357445,0.01001505,89258.0,89229.0,0.10096]
[1769545357446,0.011219,89249.0,89229.0,0.10096]
[1769545357638,0.01122,89243.0,89231.0,0.00258838]
[1769545357835,0.00086282,89242.0,89231.0,0.00258838]
[1769545359946,0.01122,89241.0,89229.0,0.10096]
[1769545360145,0.00086282,89240.0,89229.0,0.10096]
[1769545360446,0.011222,89225.0,89222.0,0.11216271]
[1769545360637,0.011221,89239.0,89212.0,0.27504683]
[1769545360638,0.011223,89219.0,89212.0,0.27504683]
[1769545360835,0.00086282,89218.0,89202.0,0.26004755]
[1769545361145,0.011225,89206.0,89189.0,0.11011806]
[1769545361441,0.011225,89202.0,89190.0,0.26004755]
[1769545361642,0.01001505,89201.0,89170.0,0.11011806]
[1769545361851,0.011227,89191.0,89170.0,0.11270644]
[1769545362045,0.00096131,89190.0,89170.0,0.11270644]
[1769545362247,0.011224,89210.0,89187.0,0.011227]
[1769545362546,0.10182282,89209.0,89188.0,0.01174644]
[1769545362736,0.10096,89208.0,89189.0,0.00915806]
[1769545362941,0.00915223,89206.0,89181.0,0.10096]
[1769545363146,0.00086282,89205.0,89182.0,0.00258838]
[1769545363339,0.00915223,89204.0,89182.0,0.00258838]
[1769545363542,0.00086282,89203.0,89182.0,0.00258838]
[1769545363741,0.011225,89200.0,89182.0,0.00258838]
[1769545363940,0.00086282,89199.0,89182.0,0.00258838]
[1769545364952,0.00086282,89199.0,89184.0,0.011227]
[1769545365146,0.00086282,89199.0,89185.0,0.00258838]
[1769545366749,0.011223,89220.0,89192.0,0.00915806]
[1769545367046,0.101,89219.0,89202.0,0.011225]
[1769545367253,0.10186282,89219.0,89203.0,0.00258838]
[1769545367553,0.011223,89216.0,89203.0,0.00258838]
[1769545367849,0.011224,89208.0,89190.0,0.112227]
[1769545368055,0.00086282,89207.0,89191.0,0.00258838]
[1769545368354,0.011225,89206.0,89190.0,0.101]
[1769545368553,0.011225,89204.0,89191.0,0.00258838]
[1769545368742,0.00086282,89203.0,89191.0,0.00258838]
[1769545369143,0.00086282,89203.0,89183.0,0.011227]
[1769545369469,0.011226,89197.0,89184.0,0.101]
[1769545369643,0.00086282,89196.0,89185.0,0.00258838]
[1769545370756,0.00086282,89196.0,89180.0,0.101]
[1769545370959,0.00915223,89195.0,89171.0,0.29556]
[1769545371144,0.00086282,89194.0,89172.0,0.00258838]
[1769545371346,0.01001505,89194.0,89172.0,0.00258838]
[1769545371552,0.011227,89189.0,89172.0,0.00258838]
[1769545371753,0.00086282,89188.0,89172.0,0.00258838]
[1769545371955,0.011227,89187.0,89172.0,0.00258838]
[1769545372244,0.00086282,89186.0,89172.0,0.00258838]
[1769545372645,0.2956,89201.0,89176.0,0.00915806]
[1769545372945,0.00915223,89190.0,89169.0,0.101]
[1769545373154,0.00915223,89188.0,89170.0,0.00258838]
[1769545373354,0.011225,89206.0,89170.0,0.00258838]
[1769545373355,0.011225,89205.0,89182.0,0.00915806]
[1769545373653,0.011226,89198.0,89171.0,0.00915806]
[1769545373854,0.011226,89194.0,89172.0,0.01381738]
[1769545374043,0.011227,89191.0,89172.0,0.00258838]
[1769545374244,0.00915223,89195.0,89172.0,0.00258838]
[1769545374456,0.011227,89186.0,89172.0,0.00258838]
[1769545374656,0.101,89185.0,89172.0,0.00258838]
[1769545374847,0.011227,89184.0,89172.0,0.00258838]
[1769545375249,0.011227,89184.0,89169.0,0.101]
[1769545375651,0.101,89185.0,89169.0,0.101]
[1769545375971,0.011228,89181.0,89169.0,0.00258838]
[1769545376151,0.00948887,89184.0,89169.0,0.00258838]
[1769545376353,0.011225,89200.0,89169.0,0.00258838]
[1769545376354,0.011228,89181.0,89169.0,0.00258838]
[1769545376659,0.011228,89179.0,89169.0,0.00258838]
[1769545376863,0.011228,89177.0,89166.0,0.00121497]
[1769545377160,0.011229,89174.0,89166.0,9.7e-07]
[1769545377548,0.011228,89178.0,89166.0,9.7e-07]
[1769545377756,0.00948887,89180.0,89166.0,9.7e-07]
[1769545378154,0.011225,89201.0,89178.0,0.0093108]
[1769545378346,0.011226,89197.0,89180.0,0.0093108]
[1769545378659,0.011226,89198.0,89181.0,0.00258838]
[1769545379053,0.011225,89201.0,89181.0,0.01381638]
[1769545379255,0.011226,89199.0,89181.0,0.00258838]
[1769545379462,0.011226,89197.0,89181.0,0.00258838]
[1769545379659,0.011226,89195.0,89181.0,0.00258838]
[1769545379860,0.10104,89196.0,89181.0,0.00258838]
[1769545379861,0.011226,89193.0,89181.0,0.00258838]
[1769545380062,0.011226,89194.0,89173.0,0.011229]
[1769545380258,0.011226,89192.0,89174.0,0.00258838]
[1769545380669,0.10104,89196.0,89174.0,0.01189918]
[1769545380861,0.00948887,89214.0,89188.0,0.0093108]
[1769545381049,0.10104,89223.0,89202.0,0.01491097]
[1769545381362,0.011223,89223.0,89204.0,0.011225]
[1769545381554,0.00948887,89226.0,89205.0,0.00258838]
[1769545381751,0.00948887,89219.0,89200.0,0.10104]
[1769545381951,0.00948887,89219.0,89184.0,0.00368597]
[1769545382154,0.011224,89209.0,89189.0,0.10104]
[1769545382362,0.10104,89213.0,89190.0,0.00258838]
[1769545382570,0.011224,89212.0,89190.0,0.00258838]
[1769545383065,0.02071287,89212.0,89190.0,0.00258838]
[1769545383563,0.00948887,89212.0,89192.0,0.011226]
[1769545383763,0.10104,89213.0,89189.0,0.10104]
[1769545383764,0.10104,89213.0,89199.0,0.011226]
[1769545383951,0.00948887,89222.0,89200.0,0.00258838]
[1769545384156,0.10104,89221.0,89205.0,0.011225]
[1769545384354,0.10104,89220.0,89206.0,0.00258838]
[1769545385066,0.10104,89231.0,89206.0,0.00641164]
[1769545385254,0.101,89236.0,89219.0,0.011223]
[1769545385454,0.101,89236.0,89220.0,0.00258838]
[1769545385665,0.112221,89236.0,89220.0,0.00258838]
[1769545385867,0.101,89236.0,89220.0,0.00258838]
[1769545386462,0.00948887,89251.0,89224.0,0.011222]
[1769545386763,0.00948887,89244.0,89225.0,0.00258838]
[1769545386963,0.00948887,89242.0,89225.0,0.00258838]
[1769545387164,0.00948887,89238.0,89216.0,0.101]
[1769545387367,0.00948887,89238.0,89219.0,0.011223]
[1769545387560,0.02048887,89247.0,89220.0,0.00258838]
[1769545387760,0.01122,89243.0,89221.0,0.011223]
[1769545388055,0.01122,89243.0,89222.0,0.00258838]
[1769545388366,0.03170887,89247.0,89223.0,0.011222]
[1769545388566,0.03170887,89247.0,89224.0,0.00258838]
[1769545388769,0.01122,89245.0,89224.0,0.00258838]
[1769545388967,0.01122,89243.0,89224.0,0.00258838]
[1769545389262,0.02048887,89247.0,89228.0,0.011222]
[1769545389469,0.02048887,89247.0,89229.0,0.00258838]
[1769545389670,0.01122,89245.0,89229.0,0.00258838]
[1769545390058,0.01122,89240.0,89229.0,0.00258838]
[1769545390259,0.02048887,89247.0,89220.0,0.101]
[1769545390464,0.02048887,89247.0,89221.0,0.00258838]
[1769545390661,0.01122,89241.0,89221.0,0.00258838]
[1769545390970,0.011221,89237.0,89221.0,0.00258838]
[1769545391360,0.01122,89240.0,89221.0,0.00258838]
[1769545391565,0.011221,89235.0,89221.0,0.00258838]
[1769545391866,0.011221,89235.0,89208.0,0.00360862]
[1769545391867,0.00948887,89233.0,89220.0,0.101]
[1769545392063,0.01509221,89233.0,89220.0,0.10358838]
[1769545392962,0.011221,89232.0,89220.0,0.10358838]
[1769545393162,0.01733355,89233.0,89220.0,0.101]
[1769545393469,0.011222,89230.0,89220.0,0.101]
[1769545393668,0.00784468,89233.0,89221.0,0.011223]
[1769545393877,6.8e-07,89233.0,89225.0,0.011222]
[1769545394167,6.8e-07,89233.0,89226.0,0.00258838]
[1769545394366,0.101,89240.0,89226.0,0.00258838]
[1769545394555,0.11222,89240.0,89226.0,0.00258838]
[1769545395159,0.011221,89233.0,89220.0,0.101]
[1769545395367,0.011221,89233.0,89221.0,0.00258838]
[1769545396072,0.011222,89231.0,89220.0,0.101]
[1769545396272,0.011221,89234.0,89220.0,0.10358838]
[1769545396462,0.011221,89234.0,89220.0,0.00258838]
[1769545396662,0.011221,89232.0,89220.0,0.00258838]
[1769545396864,0.011221,89238.0,89220.0,0.00258838]
[1769545397357,0.00948887,89239.0,89220.0,0.00258838]
[1769545397560,0.101,89245.0,89232.0,0.00395904]
[1769545397756,0.101,89245.0,89232.0,0.00258838]
[1769545397960,0.101,89245.0,89233.0,0.011221]
[1769545398361,0.011,89247.0,89234.0,0.00447207]
[1769545398563,0.00948887,89258.0,89235.0,0.00258838]
[1769545398873,0.00948887,89258.0,89239.0,0.01122]
[1769545399070,0.00948887,89258.0,89241.0,0.01122]
[1769545399268,0.02070687,89257.0,89242.0,0.00258838]
[1769545399574,0.00948887,89252.0,89229.0,0.011222]
[1769545399870,0.00948887,89250.0,89230.0,0.00258838]
[1769545400265,0.00948887,89248.0,89230.0,0.00258838]
[1769545400462,0.00948887,89244.0,89230.0,0.00258838]
[1769545400662,0.00948887,89244.0,89223.0,0.011222]
[1769545400872,0.00948887,89244.0,89225.0,0.011222]
[1769545401172,0.00948887,89244.0,89225.0,0.00258838]
[1769545402165,0.11222,89245.0,89221.0,0.101]
[1769545402166,0.01122,89241.0,89221.0,0.101]
[1769545402365,0.01122,89241.0,89169.0,0.168548]
[1769545402366,0.02070987,89234.0,89206.0,0.00490814]
[1769545402564,0.02070987,89234.0,89193.0,0.01125426]
[1769545402565,0.011222,89228.0,89207.0,0.11481238]
[1769545402760,0.02071087,89228.0,89207.0,0.11481238]
[1769545402959,0.02071087,89228.0,89207.0,0.10358838]
[1769545402960,0.00948887,89228.0,89207.0,0.10358838]
[1769545403166,0.011223,89219.0,89199.0,0.011225]
[1769545403365,0.00922901,89218.0,89199.0,0.011225]
[1769545403567,0.00922901,89218.0,89202.0,0.011225]
[1769545403767,0.101,89224.0,89213.0,0.011224]
[1769545403968,0.101,89224.0,89215.0,0.011224]
[1769545404170,0.101,89224.0,89216.0,0.00258838]
[1769545404570,0.101,89224.0,89203.0,0.00976841]
[1769545404772,0.101,89224.0,89204.0,0.00258838]
[1769545405072,0.101,89224.0,89204.0,0.01197991]
[1769545405266,0.101,89224.0,89205.0,0.00939153]
[1769545405467,0.101,89224.0,89212.0,0.011224]
[1769545405666,0.101,89224.0,89213.0,0.01381238]
[1769545406067,0.101,89224.0,89213.0,0.00258838]
[1769545406262,0.00996118,89235.0,89214.0,0.011224]
[1769545406469,0.101,89238.0,89218.0,0.00939153]
[1769545406763,0.101,89238.0,89217.0,0.011223]
[1769545406764,0.101,89255.0,89237.0,0.011221]
[1769545406963,0.101,89255.0,89238.0,0.00258838]
[1769545407976,0.011219,89251.0,89234.0,0.011221]
[1769545408166,0.112218,89255.0,89236.0,0.011221]
[1769545408366,0.00996118,89254.0,89237.0,0.00258838]
[1769545408969,0.011219,89253.0,89237.0,0.00258838]
[1769545409365,0.00996118,89254.0,89237.0,0.00258838]
[1769545409577,0.101,89255.0,89237.0,0.01380938]
[1769545409977,0.101,89255.0,89237.0,0.00258838]
[1769545410279,0.101,89255.0,89238.0,0.011221]
[1769545410579,0.101,89255.0,89240.0,0.01122]
[1769545410774,0.101,89255.0,89242.0,0.01122]
[1769545411076,0.011216,89274.0,89229.0,0.112222]
[1769545411077,0.101,89258.0,89251.0,0.011219]
[1769545411264,0.101,89258.0,89253.0,0.011219]
[1769545411464,0.101,89258.0,89250.0,0.011219]
[1769545411769,0.00996118,89256.0,89241.0,0.01122]
[1769545411963,0.00996118,89254.0,89241.0,0.00086282]
[1769545412171,0.00258838,89253.0,89236.0,0.101]
[1769545412666,0.00258838,89253.0,89231.0,0.101]
[1769545412667,0.00996118,89252.0,89231.0,0.101]
[1769545412872,0.01254956,89251.0,89231.0,0.101]
[1769545413575,0.01254956,89251.0,89237.0,0.011221]
[1769545414075,0.01254956,89251.0,89239.0,0.01122]
[1769545414278,0.01254956,89251.0,89231.0,0.101]
[1769545414493,0.01254956,89251.0,89236.0,0.011221]
[1769545414681,0.02376856,89251.0,89232.0,0.011221]
[1769545414872,0.00996118,89250.0,89220.0,0.112183]
[1769545415068,0.00996118,89241.0,89220.0,0.10096]
[1769545415376,0.00996118,89239.0,89220.0,0.10096]
[1769545415576,0.00996118,89231.0,89209.0,0.10096]
[1769545415780,0.011222,89225.0,89209.0,0.10096]
[1769545415981,0.00258838,89224.0,89210.0,0.011224]
[1769545416282,0.00258838,89224.0,89209.0,0.10096]
[1769545416983,0.00258838,89224.0,89210.0,0.011224]
[1769545417282,0.02096118,89267.0,89230.0,0.00939153]
[1769545417482,0.10096,89261.0,89233.0,0.00939153]
[1769545417785,0.01208082,89260.0,89237.0,0.011221]
[1769545417970,0.01208082,89260.0,89238.0,0.00258838]
[1769545418380,0.011219,89254.0,89238.0,0.00258838]
[1769545418583,0.01208182,89253.0,89231.0,0.10096]
[1769545418783,0.01208182,89253.0,89233.0,0.011221]
[1769545419086,0.00086282,89253.0,89234.0,0.00258838]
[1769545419284,0.10096,89255.0,89240.0,0.01122]
[1769545419582,0.00086282,89254.0,89242.0,0.01122]
[1769545419782,0.00086282,89254.0,89243.0,0.00258838]
[1769545420377,0.011219,89253.0,89231.0,0.11035153]
[1769545420575,0.00258838,89252.0,89235.0,0.011221]
[1769545421576,0.00258838,89252.0,89233.0,0.011221]
[1769545422077,0.00258838,89252.0,89236.0,0.011221]
[1769545422279,0.011217,89264.0,89244.0,0.01122]
[1769545422583,0.00258838,89263.0,89242.0,0.00939153]
[1769545423088,0.011218,89260.0,89242.0,0.02061153]
[1769545423277,0.00258838,89259.0,89242.0,0.00939153]
[1769545423478,0.00258838,89259.0,89242.0,0.02061153]
[1769545424388,0.01380638,89259.0,89242.0,0.02061153]
[1769545425082,0.00258838,89259.0,89242.0,0.02061153]
[1769545425284,0.00258838,89259.0,89244.0,0.01122]
[1769545425485,0.011218,89256.0,89232.0,0.00939153]
[1769545425680,0.00258838,89255.0,89232.0,0.00939153]
[1769545425879,0.00258838,89255.0,89232.0,0.12143446]
[1769545426589,0.011219,89252.0,89236.0,0.011221]
[1769545426789,0.00258838,89251.0,89236.0,0.011221]
[1769545427085,0.00258838,89251.0,89230.0,0.011222]
[1769545427382,0.011219,89249.0,89231.0,0.011221]
[1769545427584,0.00258838,89248.0,89231.0,0.011221]
[1769545427787,0.01122,89247.0,89231.0,0.011221]
[1769545427986,0.00258838,89246.0,89231.0,0.011221]
[1769545428289,0.00258838,89246.0,89237.0,0.011221]
[1769545428882,0.00258838,89246.0,89234.0,0.011221]
[1769545429079,0.00258838,89246.0,89224.0,0.11035153]
[1769545429385,0.00258838,89246.0,89232.0,0.011221]
[1769545429588,0.01122,89245.0,89228.0,0.011222]
[1769545429883,0.01122,89243.0,89225.0,0.011222]
[1769545430089,0.00258838,89242.0,89225.0,0.011222]
[1769545430288,0.02118118,89241.0,89216.0,0.00939153]
[1769545430487,0.00996118,89239.0,89212.0,0.112184]
[1769545430789,0.00996118,89236.0,89212.0,0.10096]
[1769545431086,0.00258838,89235.0,89213.0,0.00939153]
[1769545431290,0.00258838,89235.0,89212.0,0.10096]
[1769545431291,0.29548,89248.0,89215.0,0.00939153]
[1769545431492,0.01122,89241.0,89224.0,0.011222]
[1769545431675,0.011221,89239.0,89224.0,0.011222]
[1769545431876,0.00258838,89238.0,89224.0,0.011222]
[1769545432087,0.00258838,89238.0,89226.0,0.011222]
[1769545432290,0.00996118,89257.0,89227.0,0.00939153]
[1769545432587,0.011219,89249.0,89232.0,0.011221]
[1769545432777,0.00086282,89248.0,89233.0,0.00258838]
[1769545432984,0.01122,89243.0,89227.0,0.00939153]
[1769545433188,0.00086282,89242.0,89228.0,0.00258838]
[1769545433390,0.01122,89241.0,89228.0,0.00258838]
[1769545433595,0.00086282,89240.0,89228.0,0.00258838]
[1769545433795,0.00086282,89239.0,89228.0,0.00258838]
[1769545434093,0.10096,89256.0,89239.0,0.00939153]
[1769545434292,0.00086282,89255.0,89241.0,0.01122]
[1769545434495,0.00086282,89255.0,89243.0,0.01122]
[1769545434692,0.10096,89254.0,89244.0,0.00258838]
[1769545434888,0.00086282,89253.0,89236.0,0.011221]
[1769545435189,0.00925791,89251.0,89229.0,0.10096]
[1769545435386,0.00925791,89249.0,89229.0,0.10096]
[1769545435586,0.01122,89245.0,89229.0,0.10096]
[1769545435786,0.01122,89243.0,89224.0,0.00988722]
[1769545435991,0.10182282,89242.0,89218.0,0.10096]
[1769545436193,0.011221,89235.0,89218.0,0.10096]
[1769545436389,0.00086282,89234.0,89218.0,0.10096]
[1769545436587,0.011221,89233.0,89218.0,0.10096]
[1769545436788,0.00086282,89232.0,89218.0,0.10096]
[1769545437484,0.00925791,89217.0,89186.0,0.02109968]
[1769545437794,0.011225,89208.0,89193.0,0.01043657]
[1769545437988,0.011225,89206.0,89193.0,0.00784819]
[1769545438188,0.00086282,89205.0,89193.0,0.00799169]
[1769545438384,0.00086282,89205.0,89193.0,0.00784819]
[1769545438693,0.00011015,89204.0,89193.0,0.01043657]
[1769545438898,0.00086282,89203.0,89193.0,0.00784819]
[1769545439099,0.011225,89202.0,89193.0,0.00784819]
[1769545439286,0.00086282,89201.0,89186.0,0.01121246]
[1769545439492,0.00086282,89201.0,89187.0,5e-07]
[1769545439697,0.011227,89192.0,89168.0,0.00988722]
[1769545439895,0.011227,89187.0,89172.0,0.00258838]
[1769545440101,0.00086282,89186.0,89172.0,0.00258838]
[1769545440787,0.00012332,89185.0,89166.0,9.7e-07]
[1769545440991,0.011229,89176.0,89166.0,9.7e-07]
[1769545441195,0.10186282,89184.0,89166.0,9.7e-07]
[1769545441196,0.00086282,89175.0,89166.0,9.7e-07]
[1769545441394,0.011231,89158.0,89146.0,0.01121749]
[1769545441597,0.00086282,89175.0,89146.0,0.01380587]
[1769545441598,0.10186282,89157.0,89146.0,0.01380587]
[1769545441792,0.101,89156.0,89146.0,0.01121749]
[1769545441986,0.00086282,89155.0,89146.0,0.01121749]
[1769545442198,0.011232,89151.0,89133.0,0.00988722]
[1769545442499,0.101,89156.0,89134.0,0.00258838]
[1769545442500,0.011232,89149.0,89134.0,0.00258838]
[1769545442700,0.011232,89149.0,89133.0,0.00988722]
[1769545442701,0.00086282,89148.0,89128.0,0.0359669]
[1769545442897,0.01012073,89148.0,89128.0,9e-07]
[1769545443091,0.011233,89141.0,89120.0,0.101]
[1769545443292,0.011233,89139.0,89121.0,0.00258838]
[1769545443489,0.00086282,89138.0,89121.0,0.00258838]
[1769545443900,0.011234,89130.0,89120.0,0.101]
[1769545444102,0.011234,89128.0,89113.0,0.00785524]
[1769545444292,0.011235,89126.0,89113.0,0.00785524]
[1769545444512,0.00086282,89125.0,89106.0,3.6e-07]
[1769545444717,0.011237,89110.0,89106.0,3.6e-07]
[1769545444924,0.011237,89106.0,89086.0,0.01122505]
[1769545445118,0.10186282,89105.0,89087.0,0.00258838]
[1769545445424,0.101,89104.0,89087.0,0.00258838]
[1769545445626,0.00086282,89103.0,89087.0,0.00258838]
[1769545445824,0.00086282,89103.0,89087.0,3.8e-07]
[1769545446132,0.00086282,89103.0,89072.0,0.101]
[1769545446325,0.00925791,89099.0,89073.0,7.6e-07]
[1769545446524,0.011241,89080.0,89073.0,7.6e-07]
[1769545446723,0.011241,89077.0,89054.0,0.10104]
[1769545446926,0.011241,89074.0,89048.0,0.00012237]
[1769545447125,0.011242,89072.0,89048.0,0.00012237]
[1769545447433,0.011242,89070.0,89048.0,0.00012237]
[1769545447634,0.10104,89076.0,89048.0,0.00012237]
[1769545447635,0.00258838,89069.0,89048.0,0.00012237]
[1769545447831,0.29568,89069.0,89048.0,0.01000959]